fUSD/lending_fUSD_20240414
["ID","MTS","AMOUNT","RATE_DAILY","PERIOD"]
[322600745,1713112238487,-156.04561119,0.000209,2]
[322600746,1713112238496,-156.04561119,0.000209,2]
[322600747,1713112238505,-156.04561119,0.000209,2]
[322600748,1713112238515,-14164.9403,0.000209,2]
[322600749,1713112238523,-156.45310573,0.000209,2]
[322600750,1713112238533,-3278.022,0.000209,2]
[322600751,1713112238542,-151.01070947,0.000209,2]
[322600752,1713112238551,-1049.0,0.000209,2]
[322600753,1713112238561,-1000.0,0.000209,2]
[322600754,1713112238570,-156.04561119,0.000209,2]
[322600755,1713112238580,-185.54198541,0.000209,2]
[322600756,1713112238589,-189.93614,0.000209,2]
[322600757,1713112238600,-386.73229254,0.000209,2]
[322600758,1713112238609,-1198.59590957,0.000209,3]
[322600759,1713112238618,-157.1255429,0.000209,2]
[322600760,1713112238627,-157.1255428,0.000209,2]
[322600761,1713112238637,-157.1255428,0.000209,2]
[322600762,1713112238646,-157.1255428,0.000209,2]
[322600763,1713112238655,-157.1255428,0.000209,2]
[322600764,1713112238664,-157.1255428,0.000209,2]
[322600765,1713112238673,-157.1255428,0.000209,2]
[322600766,1713112238683,-157.1255428,0.000209,2]
[322600768,1713112238692,-157.1255428,0.000209,2]
[322600770,1713112238703,-157.1255428,0.000209,2]
[322600772,1713112238712,-3770.46184272,0.00020998,2]
[322600774,1713112238721,-312.9044161,0.00020998,2]
[322600776,1713112238730,-780.05382611,0.00020998,2]
[322600778,1713112238739,-233.51339806,0.00020998,2]
[322600780,1713112238749,-1121.79191725,0.00020998,2]
[322600782,1713112238758,-225.5574953,0.00020998,2]
[322600784,1713112238767,-198.02048487,0.00020998,2]
[322600786,1713112238777,-441.38155956,0.00020999,2]
[322600788,1713112238786,-1287.86223544,0.00020999,5]
[322600790,1713112238795,-1081.43361085,0.00020999,5]
[322600792,1713112238804,-1081.43361085,0.00020999,5]
[322600794,1713112238814,-1081.43361085,0.00020999,5]
[322600796,1713112238823,-1081.43361085,0.00020999,5]
[322600798,1713112238832,-1081.43361085,0.00020999,5]
[322600800,1713112238841,-1081.43361085,0.00020999,5]
[322600802,1713112238854,-1081.43361085,0.00020999,5]
[322600804,1713112238863,-1081.43361085,0.00020999,5]
[322600806,1713112238873,-1081.43361085,0.00020999,5]
[322600808,1713112238881,-1081.43361081,0.00020999,5]
[322600810,1713112238892,-1081.43361085,0.00020999,5]
[322600812,1713112238902,-1081.43361085,0.00020999,5]
[322600814,1713112238911,-11743.7745552,0.00020999,2]
[322600816,1713112238920,-26638.3039369,0.00020999,2]
[322600818,1713112238930,-179423.8604959,0.00020999,2]
[322600820,1713112238940,-500.0,0.00020999,2]
[322600822,1713112238950,-500.0,0.00020999,2]
[322600824,1713112238960,-448.7225923,0.00020999,2]
[322600826,1713112238969,-352.27364097,0.00020999,2]
[322600828,1713112238978,-500.0,0.00020999,2]
[322600830,1713112238987,-500.0,0.00020999,2]
[322600832,1713112238996,-500.0,0.00020999,2]
[322600834,1713112239006,-500.0,0.00020999,2]
[322600836,1713112239015,-500.0,0.00020999,2]
[322600838,1713112239025,-500.0,0.00020999,2]
[322600840,1713112239034,-500.0,0.00020999,2]
[322600842,1713112239044,-453.77502204,0.00020999,2]
[322600844,1713112239053,-500.0,0.00020999,2]
[322600846,1713112239062,-500.0,0.00020999,2]
[322600848,1713112239072,-500.0,0.00020999,2]
[322600850,1713112239081,-500.0,0.00020999,2]
[322600852,1713112239090,-500.0,0.00020999,2]
[322600854,1713112239100,-500.0,0.00020999,2]
[322600856,1713112239109,-500.0,0.00020999,2]
[322600858,1713112239119,-500.0,0.00020999,2]
[322600860,1713112239129,-500.0,0.00020999,2]
[322600862,1713112239139,-500.0,0.00020999,2]
[322600865,1713112239149,-500.0,0.00020999,2]
[322600867,1713112239160,-500.0,0.00020999,2]
[322600868,1713112239170,-500.0,0.00020999,2]
[322600871,1713112239181,-500.0,0.00020999,2]
[322600873,1713112239191,-500.0,0.00020999,2]
[322600874,1713112239207,-500.0,0.00020999,2]
[322600876,1713112239217,-500.0,0.00020999,2]
[322600878,1713112239227,-336.17975351,0.00020999,2]
[322600880,1713112239236,-500.0,0.00020999,2]
[322600883,1713112239246,-500.0,0.00020999,2]
[322600885,1713112239255,-199.99999999,0.00020999,2]
[322600887,1713112239264,-500.0,0.00020999,2]
[322600889,1713112239273,-550.0,0.00020999,2]
[322600891,1713112239283,-470.38028025,0.00020999,2]
[322600892,1713112239292,-500.0,0.00020999,2]
[322600893,1713112239301,-445.0,0.00020999,2]
[322600894,1713112239311,-350.00000001,0.00020999,2]
[322600895,1713112239320,-235.0,0.00020999,2]
[322600896,1713112239329,-500.0,0.00020999,2]
[322600897,1713112239338,-500.0,0.00020999,2]
[322600898,1713112239348,-200.0,0.00020999,2]
[322600899,1713112239357,-500.0,0.00020999,2]
[322600900,1713112239368,-200.0,0.00020999,2]
[322600901,1713112239378,-443.98148563,0.00020999,2]
[322600902,1713112239388,-500.0,0.00020999,2]
[322600903,1713112239398,-200.0,0.00020999,2]
[322600904,1713112239408,-200.0,0.00020999,2]
[322600905,1713112239417,-500.0,0.00020999,2]
[322600906,1713112239427,-500.0,0.00020999,2]
[322600907,1713112239436,-200.0,0.00020999,2]
[322600908,1713112239449,-500.0,0.00020999,2]
[322600909,1713112239459,-200.0,0.00020999,2]
[322600910,1713112239468,-200.0,0.00020999,2]
[322600911,1713112239477,-500.0,0.00020999,2]
[322600912,1713112239487,-350.0,0.00020999,2]
[322600913,1713112239496,-334.97785647,0.00020999,2]
[322600914,1713112239506,-350.0,0.00020999,2]
[322600915,1713112239516,-350.0,0.00020999,2]
[322600916,1713112239526,-350.0,0.00020999,2]
[322600917,1713112239537,-351.59154868,0.00020999,2]
[322600918,1713112239546,-350.0,0.00020999,2]
[322600919,1713112239555,-350.0,0.00020999,2]
[322600920,1713112239563,-350.0,0.00020999,2]
[322600921,1713112239573,-350.0,0.00020999,2]
[322600922,1713112239582,-350.0,0.00020999,2]
[322600923,1713112239591,-350.0,0.00020999,2]
[322600924,1713112239601,-350.0,0.00020999,2]
[322600925,1713112239610,-489.01383202,0.00020999,2]
[322600926,1713112239620,-350.0,0.00020999,2]
[322600927,1713112239629,-500.0,0.00020999,2]
[322600928,1713112239638,-350.0,0.00020999,2]
[322600929,1713112239648,-500.0,0.00020999,2]
[322600930,1713112239657,-500.0,0.00020999,2]
[322600931,1713112239666,-500.0,0.00020999,2]
[322600932,1713112239675,-6086426.06399086,0.00021,2]
[322600933,1713112239922,-7166549.79208972,0.00021,2]
[322600934,1713112239934,-715.48314253,0.00021,2]
[322600935,1713112239946,-1430.30975011,0.00021,2]
[322600936,1713112239957,-4647794.35258425,0.00021,2]
[322600938,1713112239968,-429.55,0.00021,2]
[322600939,1713112239980,-300.53,0.00021,2]
[322600940,1713112239991,-2000.0,0.00021,2]
[322600941,1713112240002,-200.0,0.00021,2]
[322600942,1713112240013,-2000.0,0.00021,2]
[322600943,1713112240025,-200.0,0.00021,2]
[322600944,1713112240036,-2000.0,0.00021,2]
[322600945,1713112240046,-200.0,0.00021,2]
[322600946,1713112240056,-2000.0,0.0002121,2]
[322600947,1713112240067,-200.0,0.0002121,2]
[322600948,1713112240077,-2000.0,0.0002121,2]
[322600949,1713112240086,-200.0,0.0002121,2]
[322600950,1713112240096,-1095.1721366,0.0002121,2]
[322600951,1713112240105,-976.55734572,0.00021295,2]
[322600953,1713112240115,-2000.0,0.00021422,2]
[322600955,1713112240124,-200.0,0.00021422,2]
[322600957,1713112240134,-2000.0,0.00021422,2]
[322600959,1713112240144,-200.0,0.00021422,2]
[322600960,1713112240154,-2000.0,0.00021636,2]
[322600961,1713112240164,-200.0,0.00021636,2]
[322600962,1713112240173,-2000.0,0.00021636,2]
[322600963,1713112240183,-200.0,0.00021636,2]
[322600964,1713112240192,-558.26,0.00021791,2]
[322600965,1713112240204,-1000.0,0.00021817,2]
[322600966,1713112240213,-2000.0,0.00021853,2]
[322600967,1713112240223,-200.0,0.00021853,2]
[322600968,1713112240233,-828.57082808,0.00021853,2]
[322600969,1713112240243,-200.0,0.00021853,2]
[322600970,1713112240252,-176.72,0.00021918,2]
[322600971,1713112240263,-250.0,0.00021918,2]
[322600972,1713112240273,-250.0,0.00021918,2]
[322600973,1713112240282,-223.34482535,0.00022,2]
[322600974,1713112240292,-223.34482535,0.00022,2]
[322600975,1713112240301,-223.34482535,0.00022,2]
[322600976,1713112240310,-223.34482535,0.00022,2]
[322600977,1713112240320,-223.34482535,0.00022,2]
[322600978,1713112240330,-223.34482535,0.00022,2]
[322600979,1713112240339,-223.34482535,0.00022,2]
[322600980,1713112240349,-223.34482535,0.00022,2]
[322600981,1713112240359,-223.34482535,0.00022,2]
[322600982,1713112240368,-223.34482535,0.00022,2]
[322600983,1713112240377,-223.34482535,0.00022,2]
[322600984,1713112240387,-223.34482535,0.00022,2]
[322600985,1713112240397,-223.34482535,0.00022,2]
[322600986,1713112240406,-223.34482535,0.00022,2]
[322600987,1713112240415,-223.34482535,0.00022,2]
[322600988,1713112240425,-223.34482535,0.00022,2]
[322600989,1713112240434,-223.34482535,0.00022,2]
[322600990,1713112240445,-223.34482535,0.00022,2]
[322600991,1713112240455,-223.34482535,0.00022,2]
[322600992,1713112240464,-223.34482535,0.00022,2]
[322600993,1713112240474,-223.34482535,0.00022,2]
[322600994,1713112240483,-223.34482535,0.00022,2]
[322600995,1713112240492,-223.34482535,0.00022,2]
[322600996,1713112240501,-223.34482535,0.00022,2]
[322600997,1713112240511,-223.34482535,0.00022,2]
[322600998,1713112240520,-223.34482535,0.00022,2]
[322600999,1713112240529,-223.34482535,0.00022,2]
[322601000,1713112240539,-223.34482535,0.00022,2]
[322601001,1713112240549,-223.34482535,0.00022,2]
[322601002,1713112240558,-223.34482535,0.00022,2]
[322601003,1713112240567,-223.34482535,0.00022,2]
[322601004,1713112240577,-223.34482535,0.00022,2]
[322601005,1713112240586,-223.34482535,0.00022,2]
[322601006,1713112240596,-223.34482535,0.00022,2]
[322601007,1713112240605,-223.34482535,0.00022,2]
[322601008,1713112240614,-223.34482535,0.00022,2]
[322601009,1713112240624,-223.34482535,0.00022,2]
[322601010,1713112240634,-223.34482535,0.00022,2]
[322601011,1713112240643,-223.34482535,0.00022,2]
[322601012,1713112240653,-223.34482535,0.00022,2]
[322601013,1713112240663,-223.34482535,0.00022,2]
[322601014,1713112240673,-223.34482535,0.00022,2]
[322601015,1713112240682,-223.34482535,0.00022,2]
[322601016,1713112240691,-223.34482535,0.00022,2]
[322601017,1713112240704,-223.34482535,0.00022,2]
[322601018,1713112240713,-223.34482535,0.00022,2]
[322601019,1713112240723,-223.34482535,0.00022,2]
[322601020,1713112240732,-223.34482535,0.00022,2]
[322601021,1713112240744,-223.34482535,0.00022,2]
[322601022,1713112240753,-223.34482535,0.00022,2]
[322601023,1713112240763,-223.34482535,0.00022,2]
[322601024,1713112240772,-223.34482535,0.00022,2]
[322601025,1713112240781,-223.34482535,0.00022,2]
[322601026,1713112240791,-223.34482535,0.00022,2]
[322601027,1713112240801,-223.34482535,0.00022,2]
[322601028,1713112240811,-223.34482535,0.00022,2]
[322601029,1713112240822,-223.34482535,0.00022,2]
[322601030,1713112240833,-223.34482535,0.00022,2]
[322601031,1713112240845,-223.34482535,0.00022,2]
[322601032,1713112240861,-223.34482535,0.00022,2]
[322601033,1713112240872,-223.34482535,0.00022,2]
[322601034,1713112240882,-223.34482535,0.00022,2]
[322601035,1713112240892,-223.34482535,0.00022,2]
[322601036,1713112240907,-223.34482535,0.00022,2]
[322601037,1713112240918,-223.34482535,0.00022,2]
[322601038,1713112240928,-223.34482535,0.00022,2]
[322601039,1713112240940,-223.34482535,0.00022,2]
[322601040,1713112240951,-223.34482535,0.00022,2]
[322601041,1713112240961,-223.34482535,0.00022,2]
[322601042,1713112240970,-223.34482535,0.00022,2]
[322601043,1713112240979,-223.34482535,0.00022,2]
[322601044,1713112240989,-223.34482535,0.00022,2]
[322601045,1713112240999,-223.34482535,0.00022,2]
[322601046,1713112241009,-223.34482535,0.00022,2]
[322601047,1713112241018,-223.34482535,0.00022,2]
[322601048,1713112241029,-223.34482535,0.00022,2]
[322601049,1713112241039,-223.34482535,0.00022,2]
[322601050,1713112241049,-223.34482535,0.00022,2]
[322601051,1713112241059,-223.34482535,0.00022,2]
[322601052,1713112241068,-223.34482535,0.00022,2]
[322601053,1713112241077,-223.34482535,0.00022,2]
[322601054,1713112241087,-223.34482535,0.00022,2]
[322601055,1713112241097,-223.34482535,0.00022,2]
[322601056,1713112241106,-223.34482535,0.00022,2]
[322601057,1713112241116,-223.34482535,0.00022,2]
[322601058,1713112241125,-223.34482535,0.00022,2]
[322601059,1713112241136,-223.34482535,0.00022,2]
[322601060,1713112241146,-1012.1,0.00022113,2]
[322601061,1713112241155,-156.45310568,0.00022169,2]
[322601062,1713112241165,-6186.97731092,0.000223,2]
[322601063,1713112241175,-1073.0,0.000223,2]
[322601064,1713112241184,-1656.0,0.000224,2]
[322601065,1713112241193,-173.743,0.00022574,2]
[322601066,1713112241204,-1250.0,0.00023,3]
[322601067,1713112241214,-2102.62596,0.0002329,2]
[322601068,1713112241224,-156.45310568,0.00023438,2]
[322601069,1713112241233,-314.92,0.00023747,2]
[322601070,1713112241242,-380.0,0.00023765,2]
[322601071,1713112241251,-380.0,0.00023766,2]
[322601072,1713112241261,-380.0,0.00023774,2]
[322601073,1713112241270,-380.0,0.00023782,2]
[322601074,1713112241280,-380.0,0.00023787,2]
[322601075,1713112241289,-429.55,0.000238,2]
[322601076,1713112241299,-1130.0,0.000239,2]
[322601077,1713112241308,-352.5,0.00023928,2]
[322601078,1713112241318,-558.26,0.00024055,2]
[322601079,1713112241327,-1000.0,0.00024241,2]
[322601080,1713112241338,-500.0,0.000247,3]
[322601081,1713112241348,-300.53,0.000247,2]
[322601082,1713112241358,-156.45310568,0.00024707,2]
[322601083,1713112241367,-1998.95566924,0.000248,2]
[322601084,1713112241377,-1012.1,0.00024853,2]
[322601085,1713112241387,-1362.16740246,0.00025,2]
[322601086,1713112241396,-178.8191759,0.00025,2]
[322601087,1713112241406,-2604.28990565,0.00025,2]
[322601088,1713112241416,-1300.0,0.00025,3]
[322601089,1713112241425,-1000.0,0.00025,3]
[322601090,1713112241434,-1357.41300212,0.00025468,2]
[322601091,1713112241444,-150.0,0.00025519,2]
[322601092,1713112241454,-253.729,0.00025519,2]
[322601093,1713112241463,-263.743,0.00025519,2]
[322601094,1713112241472,-150.0,0.00025519,2]
[322601095,1713112241482,-150.11,0.00025519,2]
[322601096,1713112241491,-1261.0,0.00025519,2]
[322601097,1713112241500,-436.0,0.00025519,2]
[322601098,1713112241509,-807.0,0.00025519,2]
[322601099,1713112241519,-1950.584,0.00025519,2]
[322601100,1713112241528,-280.0,0.00025519,2]
[322601101,1713112241537,-622.608,0.00025519,2]
[322601102,1713112241547,-151.519,0.00025519,2]
[322601103,1713112241557,-3043.0,0.00025519,2]
[322601104,1713112241567,-1145.879,0.00025519,2]
[322601105,1713112241576,-433.715,0.00025519,2]
[322601106,1713112241586,-1472.0,0.00025519,2]
[322601107,1713112241595,-153.233,0.00025519,2]
[322601108,1713112241605,-2440.0,0.00025519,2]
[322601109,1713112241615,-1661.369,0.00025519,2]
[322601110,1713112241624,-215.0,0.00025519,2]
[322601111,1713112241634,-355.0,0.00025519,2]
[322601112,1713112241643,-443.0,0.00025519,2]
[322601113,1713112241653,-4803.0,0.00025519,2]
[322601114,1713112241662,-471.554,0.00025519,2]
[322601115,1713112241672,-5719.0,0.00025519,2]
[322601116,1713112241681,-2291.0,0.00025519,2]
[322601117,1713112241691,-1426.138,0.00025519,2]
[322601118,1713112241702,-37623.0,0.00025519,2]
[322601119,1713112241711,-968.0,0.00025519,2]
[322601120,1713112241721,-1315.0,0.00025519,2]
[322601121,1713112241730,-2102.62596,0.0002579,2]
[322601122,1713112241740,-156.45310568,0.00025976,2]
[322601123,1713112241750,-2593.51353582,0.00026258,28]
[322601124,1713112241759,-558.26,0.00026319,2]
[322601125,1713112241769,-34179.71553555,0.000265,2]
[322601126,1713112241779,-150.0,0.000265,2]
[322601127,1713112241789,-1000.0,0.00026665,2]
[322601128,1713112241798,-188.56727963,0.00027,4]
[322601129,1713112241808,-1350.0,0.00027,3]
[322601130,1713112241817,-1000.0,0.00027,5]
[322601131,1713112241827,-150.0,0.00027,2]
[322601132,1713112241837,-200.0,0.00027115,2]
[322601133,1713112241849,-1074.83,0.00027216,2]
[322601134,1713112241858,-156.45310568,0.00027245,2]
[322601135,1713112241868,-774.98172144,0.00027397,2]
[322601136,1713112241877,-165.9,0.00027397,2]
[322601137,1713112241887,-152.68,0.00027397,2]
[322601138,1713112241897,-158.41,0.00027397,2]
[322601139,1713112241906,-267.05,0.00027397,2]
[322601140,1713112241916,-183.27,0.00027397,2]
[322601141,1713112241927,-2000.0,0.00027397,2]
[322601142,1713112241936,-429.55,0.000274,2]
[322601143,1713112241945,-1647.0,0.000274,2]
[322601144,1713112241960,-2096.78,0.000274,2]
[322601145,1713112241970,-2096.78,0.000274,2]
[322601146,1713112241979,-2096.78,0.000274,2]
[322601147,1713112241989,-2096.78,0.000274,2]
[322601148,1713112241998,-2096.78,0.000274,2]
[322601149,1713112242008,-150.0,0.000275,2]
[322601150,1713112242018,-300.53,0.000278,2]
[322601151,1713112242027,-20189.0893382,0.00028,2]
[322601152,1713112242036,-150.0,0.00028,2]
[322601153,1713112242046,-155.0,0.00028,2]
[322601154,1713112242055,-155.0,0.00028,2]
[322601155,1713112242064,-155.0,0.00028,2]
[322601156,1713112242074,-150.0,0.00028128,2]
[322601157,1713112242083,-153.6,0.00028128,2]
[322601158,1713112242092,-267.38,0.00028128,2]
[322601159,1713112242101,-349.88,0.00028128,2]
[322601160,1713112242111,-349.88,0.00028128,2]
[322601161,1713112242120,-2102.62596,0.0002829,2]
[322601162,1713112242129,-150.0,0.000285,2]
[322601163,1713112242139,-156.45310568,0.00028514,2]
[322601164,1713112242149,-150.0,0.00028519,2]
[322601165,1713112242158,-150.0,0.00028519,2]
[322601166,1713112242167,-150.0,0.00028519,2]
[322601167,1713112242177,-1261.0,0.00028519,2]
[322601168,1713112242187,-436.0,0.00028519,2]
[322601169,1713112242196,-807.0,0.00028519,2]
[322601170,1713112242211,-1948.0,0.00028519,2]
[322601171,1713112242221,-280.0,0.00028519,2]
[322601172,1713112242231,-608.0,0.00028519,2]
[322601173,1713112242241,-150.0,0.00028519,2]
[322601174,1713112242251,-3043.0,0.00028519,2]
[322601175,1713112242260,-1140.0,0.00028519,2]
[322601176,1713112242270,-399.0,0.00028519,2]
[322601177,1713112242280,-1472.0,0.00028519,2]
[322601178,1713112242570,-150.0,0.00028519,2]
[322601179,1713112242580,-2440.0,0.00028519,2]
[322601180,1713112242590,-1637.0,0.00028519,2]
[322601181,1713112242602,-214.0,0.00028519,2]
[322601182,1713112242611,-355.0,0.00028519,2]
[322601183,1713112242621,-443.0,0.00028519,2]
[322601184,1713112242630,-4803.0,0.00028519,2]
[322601185,1713112242640,-461.0,0.00028519,2]
[322601186,1713112242649,-5719.0,0.00028519,2]
[322601187,1713112242659,-2291.0,0.00028519,2]
[322601188,1713112242668,-1391.0,0.00028519,2]
[322601189,1713112242678,-37623.0,0.00028519,2]
[322601190,1713112242687,-968.0,0.00028519,2]
[322601191,1713112242696,-1315.0,0.00028519,2]
[322601192,1713112242708,-558.26,0.00028583,2]
[322601193,1713112242717,-1000.0,0.000288,3]
[322601194,1713112242726,-562.05444632,0.00029,2]
[322601195,1713112242735,-6750.20773336,0.00029,2]
[322601196,1713112242745,-1400.0,0.00029,3]
[322601197,1713112242754,-150.0,0.00029,2]
[322601198,1713112242764,-150.31,0.00029,2]
[322601199,1713112242774,-150.31,0.00029,2]
[322601200,1713112242784,-150.31,0.00029,2]
[322601201,1713112242793,-150.31,0.00029,2]
[322601202,1713112242804,-150.31,0.00029,2]
[322601203,1713112242813,-150.31,0.00029,2]
[322601204,1713112242823,-150.31,0.00029,2]
[322601205,1713112242833,-150.31,0.00029,2]
[322601206,1713112242842,-150.31,0.00029,2]
[322601207,1713112242852,-150.31,0.00029,2]
[322601208,1713112242865,-150.31,0.00029,2]
[322601209,1713112242874,-150.31,0.00029,2]
[322601210,1713112242884,-150.31,0.00029,2]
[322601211,1713112242893,-150.31,0.00029,2]
[322601212,1713112242904,-150.31,0.00029,2]
[322601213,1713112242913,-150.31,0.00029,2]
[322601214,1713112242923,-150.31,0.00029,2]
[322601215,1713112242933,-150.31,0.00029,2]
[322601216,1713112242944,-150.31,0.00029,2]
[322601217,1713112242956,-150.31,0.00029,2]
[322601218,1713112242966,-150.31,0.00029,2]
[322601220,1713112242976,-150.31,0.00029,2]
[322601221,1713112242986,-1000.0,0.00029089,2]
[322601223,1713112242996,-1100.42275499,0.000294,2]
[322601226,1713112243006,-1065.82491156,0.000294,2]
[322601227,1713112243015,-442.25500705,0.000295,3]
[322601230,1713112243025,-150.0,0.000295,2]
[322601232,1713112243035,-220.28640523,0.00029699,2]
[322601233,1713112243045,-200.0,0.0002976,2]
[322601235,1713112243055,-1000.0,0.0002976,10]
[322601237,1713112243064,-156.45310568,0.00029783,2]
[322601240,1713112243074,-1000.0,0.0002985,2]
[322601242,1713112243083,-1000.0,0.0002985,2]
[322601244,1713112243093,-1000.0,0.0002985,2]
[322601246,1713112243102,-1000.0,0.0002985,2]
[322601248,1713112243112,-1000.0,0.0002985,2]
[322601249,1713112243122,-1000.0,0.0002985,2]
[322601251,1713112243132,-1000.0,0.0002985,2]
[322601252,1713112243141,-1000.0,0.0002985,2]
[322601253,1713112243150,-1000.0,0.0002985,2]
[322601255,1713112243160,-1000.0,0.0002985,2]
[322601257,1713112243170,-1000.0,0.0002985,2]
[322601259,1713112243180,-1000.0,0.0002985,2]
[322601260,1713112243190,-1000.0,0.0002985,2]
[322601262,1713112243202,-1000.0,0.0002985,2]
[322601263,1713112243212,-1000.0,0.0002985,2]
[322601264,1713112243222,-1000.0,0.0002985,2]
[322601265,1713112243232,-1000.0,0.0002985,2]
[322601266,1713112243242,-1000.0,0.0002985,2]
[322601267,1713112243251,-1000.0,0.0002985,2]
[322601268,1713112243261,-1000.0,0.0002985,2]
[322601269,1713112243271,-1000.0,0.0002985,2]
[322601270,1713112243280,-1000.0,0.0002985,2]
[322601271,1713112243290,-1000.0,0.0002985,2]
[322601272,1713112243300,-1000.0,0.0002985,2]
[322601273,1713112243309,-589.2752,0.0002985,2]
[322601274,1713112243319,-500.0,0.0002985,2]
[322601275,1713112243329,-500.0,0.0002985,2]
[322601276,1713112243339,-500.0,0.0002985,2]
[322601277,1713112243348,-500.0,0.0002985,2]
[322601278,1713112243359,-499.9999,0.0002985,2]
[322601279,1713112243369,-5800.0,0.00029866,2]
[322601280,1713112243380,-5800.0,0.00029875,2]
[322601281,1713112243389,-1558886.91041343,0.0002988,2]
[322601282,1713112243400,-5800.0,0.00029883,2]
[322601283,1713112243411,-5800.0,0.00029892,2]
[322601284,1713112243421,-5320.0,0.000299,2]
[322601285,1713112243431,-5800.0,0.000299,2]
[322601286,1713112243441,-300.53,0.000299,2]
[322601287,1713112243454,-955.32487035,0.00029997,2]
[322601288,1713112243464,-214.13186992,0.00029998,2]
[322601289,1713112243474,-192.36220435,0.00029998,2]
[322601290,1713112243484,-407678.87658526,0.00029998,2]
[322601291,1713112243493,-13643.41957063,0.00029999,2]
[322601292,1713112243503,-10532.01443409,0.00029999,2]
[322601293,1713112243513,-198.69874609,0.00029999,2]
[322601294,1713112243522,-2868.67944499,0.00029999,2]
[322601295,1713112243532,-10771.92311943,0.0003,10]
[322601296,1713112243541,-5288.67319609,0.0003,7]
[322601297,1713112243550,-1000.0,0.0003,2]
[322601298,1713112243560,-5672.99698819,0.0003,2]
[322601299,1713112243570,-405.90477619,0.0003,4]
[322601300,1713112243579,-6493.52292929,0.0003,2]
[322601301,1713112243589,-19327.24766397,0.0003,4]
[322601302,1713112243598,-9689.99525446,0.0003,3]
[322601303,1713112243608,-420.91017053,0.0003,2]
[322601304,1713112243618,-24674.41477347,0.0003,4]
[322601305,1713112243627,-174451.17364371,0.0003,2]
[322601306,1713112243664,-223.34482535,0.00022,2]
[322601307,1713112243674,-2850.41812995,0.0003,2]
[322601308,1713112243685,-22091.47300556,0.0003,2]
[322601338,1713112244056,-746.22151004,0.00021,2]
[322601339,1713112244065,-223.34482535,0.00022,2]
[322601340,1713112244075,-223.34482535,0.00022,2]
[322601341,1713112244084,-223.34482535,0.00022,2]
[322601342,1713112244093,-5321.88221295,0.0003,2]
[322601343,1713112244104,-508.63677885,0.0003,2]
[322601344,1713112244115,-444.96715648,0.0003,2]
[322601345,1713112244126,-465.81623856,0.0003,2]
[322601346,1713112244137,-919.86140745,0.0003,2]
[322601347,1713112244186,-572.45467177,0.0003,2]
[322601354,1713112244348,-223.34482535,0.00022,2]
[322601355,1713112244359,-372.84831512,0.0003,2]
[322601367,1713112246321,-157.1255428,0.000209,2]
[322601368,1713112246330,-223.34482535,0.00022,2]
[322601369,1713112246339,-223.34482535,0.00022,2]
[322601370,1713112246348,-223.34482535,0.00022,2]
[322601371,1713112246357,-223.34482535,0.00022,2]
[322601372,1713112246366,-223.34482535,0.00022,2]
[322601373,1713112246375,-223.34482535,0.00022,2]
[322601374,1713112246384,-223.34482535,0.00022,2]
[322601375,1713112246393,-223.34482535,0.00022,2]
[322601376,1713112246403,-1054.0,0.00025519,2]
[322601377,1713112246411,-150.31,0.00029,2]
[322601378,1713112246420,-81.5716899,0.0003,2]